fUSD/lending_fUSD_20240201
["ID","MTS","AMOUNT","RATE_DAILY","PERIOD"]
[313115232,1706764243708,-250.0,0.00032876,2]
[313115233,1706764243717,-647.7518249,0.00032876,2]
[313115234,1706764243726,-509.25392895,0.00032876,2]
[313115235,1706764243735,-500.0,0.00032876,2]
[313115236,1706764243744,-500.0,0.00032876,2]
[313115237,1706764243756,-500.0,0.00032876,2]
[313115238,1706764243766,-510.91,0.00032876,2]
[313115239,1706764243775,-500.0,0.00032876,2]
[313115240,1706764243784,-500.0,0.00032876,2]
[313115241,1706764243794,-500.0,0.00032876,2]
[313115242,1706764243803,-502.7,0.00032876,2]
[313115243,1706764243812,-1049.66,0.00032876,2]
[313115244,1706764243822,-590.82324621,0.00032876,2]
[313115245,1706764243833,-500.0,0.00032876,2]
[313115246,1706764243842,-500.0,0.00032876,2]
[313115247,1706764243852,-535.68,0.00032876,2]
[313115248,1706764243861,-630.03,0.00032876,2]
[313115249,1706764243870,-500.0,0.00032876,2]
[313115250,1706764243880,-515.88,0.00032876,2]
[313115251,1706764243889,-950.25,0.00032876,2]
[313115252,1706764243899,-525.51,0.00032876,2]
[313115253,1706764243908,-2676.27,0.00032876,2]
[313115254,1706764243917,-500.0,0.00032876,2]
[313115255,1706764243927,-500.0,0.00032876,2]
[313115256,1706764243936,-500.0,0.00032876,2]
[313115257,1706764243945,-500.0,0.00032876,2]
[313115258,1706764243955,-500.0,0.00032876,2]
[313115259,1706764243964,-500.0,0.00032876,2]
[313115260,1706764243973,-753.34,0.00032876,2]
[313115261,1706764243983,-500.0,0.00032876,2]
[313115262,1706764243992,-500.0,0.00032876,2]
[313115263,1706764244003,-749.99,0.00032876,2]
[313115264,1706764244012,-500.0,0.00032876,2]
[313115265,1706764244021,-500.0,0.00032876,2]
[313115266,1706764244031,-1191.55,0.00032876,2]
[313115267,1706764244039,-584.12,0.00032876,2]
[313115268,1706764244049,-500.0,0.00032876,2]
[313115269,1706764244058,-500.0,0.00032876,2]
[313115270,1706764244066,-1199.33,0.00032876,2]
[313115271,1706764244075,-500.0,0.00032876,2]
[313115272,1706764244084,-500.0,0.00032876,2]
[313115273,1706764244093,-1000.0,0.00032876,7]
[313115274,1706764244102,-543.27,0.00032876,2]
[313115275,1706764244111,-2584.93,0.00032876,2]
[313115276,1706764244120,-589.94,0.00032876,2]
[313115277,1706764244129,-539.83,0.00032876,2]
[313115278,1706764244139,-596.15,0.00032876,2]
[313115279,1706764244150,-585.67,0.00032876,2]
[313115280,1706764244159,-500.0,0.00032876,2]
[313115281,1706764244169,-1063.1,0.00032876,2]
[313115282,1706764244178,-1000.0,0.00032876,7]
[313115283,1706764244187,-625.67,0.00032876,2]
[313115284,1706764244196,-500.0,0.00032876,2]
[313115285,1706764244205,-1467.48,0.00032876,2]
[313115286,1706764244214,-1552.63,0.00032876,2]
[313115287,1706764244224,-500.0,0.00032876,2]
[313115288,1706764244233,-993.17,0.00032876,2]
[313115289,1706764244243,-500.0,0.00032876,2]
[313115290,1706764244252,-500.0,0.00032876,2]
[313115291,1706764244262,-606.44947571,0.00032876,2]
[313115292,1706764244272,-500.0,0.00032876,2]
[313115293,1706764244282,-766.95,0.00032876,2]
[313115294,1706764244291,-500.0,0.00032876,2]
[313115295,1706764244301,-1917.33,0.00032876,5]
[313115296,1706764244310,-997.25,0.00032876,2]
[313115297,1706764244319,-500.0,0.00032876,2]
[313115298,1706764244328,-500.0,0.00032876,2]
[313115299,1706764244338,-500.0,0.00032876,2]
[313115300,1706764244347,-500.0,0.00032876,2]
[313115301,1706764244357,-500.0,0.00032876,2]
[313115302,1706764244366,-2175.53,0.00032876,2]
[313115303,1706764244376,-639.8,0.00032876,2]
[313115304,1706764244386,-651.88,0.00032876,2]
[313115305,1706764244395,-500.0,0.00032876,2]
[313115306,1706764244404,-500.0,0.00032876,2]
[313115307,1706764244413,-17050.54,0.00032876,2]
[313115308,1706764244423,-650.55,0.00032876,2]
[313115309,1706764244432,-500.0,0.00032876,2]
[313115310,1706764244442,-1374.46,0.00032876,2]
[313115311,1706764244452,-500.0,0.00032876,2]
[313115312,1706764244461,-1323.97,0.00032876,2]
[313115313,1706764244471,-500.0,0.00032876,2]
[313115314,1706764244481,-500.0,0.00032876,2]
[313115315,1706764244490,-555.19,0.00032876,2]
[313115316,1706764244500,-500.0,0.00032876,2]
[313115317,1706764244509,-500.0,0.00032876,2]
[313115318,1706764244519,-561.73,0.00032876,2]
[313115319,1706764244529,-1221.6,0.00032876,2]
[313115320,1706764244538,-1352.88,0.00032876,2]
[313115321,1706764244548,-762.08,0.00032876,2]
[313115322,1706764244557,-500.0,0.00032876,2]
[313115323,1706764244566,-707.86,0.00032876,2]
[313115324,1706764244576,-585.84,0.00032876,2]
[313115325,1706764244585,-187.18642964,0.00032876,2]
[313115326,1706764244595,-500.0,0.00032876,2]
[313115327,1706764244604,-536.1729832,0.00032876,2]
[313115328,1706764244613,-2250.52,0.00032876,2]
[313115329,1706764244670,-500.0,0.00032876,2]
[313115330,1706764244679,-716.1,0.00032876,2]
[313115331,1706764244689,-500.0,0.00032876,2]
[313115332,1706764244697,-500.0,0.00032876,2]
[313115333,1706764244706,-500.0,0.00032876,2]
[313115334,1706764244715,-500.0,0.00032876,2]
[313115335,1706764244725,-500.0,0.00032876,2]
[313115336,1706764244734,-521.7554033,0.00032876,2]
[313115337,1706764244744,-565.28600936,0.00032876,2]
[313115338,1706764244761,-811.63,0.00032876,2]
[313115339,1706764244773,-176.02063487,0.00032876,2]
[313115340,1706764244782,-500.0,0.00032876,2]
[313115341,1706764244791,-500.0,0.00032876,2]
[313115342,1706764244800,-500.0,0.00032876,2]
[313115343,1706764244810,-500.0,0.00032876,2]
[313115344,1706764244819,-156.50451813,0.00032876,2]
[313115345,1706764244828,-500.0,0.00032876,2]
[313115346,1706764244837,-669.33,0.00032876,2]
[313115347,1706764244847,-522.87681317,0.00032876,2]
[313115348,1706764244856,-500.0,0.00032876,2]
[313115349,1706764244865,-500.0,0.00032876,2]
[313115350,1706764244874,-500.0,0.00032877,2]
[313115351,1706764244884,-50000.0,0.00032895,10]
[313115352,1706764244893,-1000.0,0.00032895,7]
[313115353,1706764244901,-50000.0,0.00032895,10]
[313115354,1706764244910,-50000.0,0.00032895,10]
[313115355,1706764244920,-1073.98130814,0.000329,6]
[313115356,1706764244929,-234.0201,0.00032948,4]
[313115357,1706764244938,-432.121,0.00032973,2]
[313115358,1706764244948,-4227.015,0.00032973,2]
[313115359,1706764244957,-247.474,0.00032973,2]
[313115360,1706764244965,-241.438,0.00032973,2]
[313115361,1706764244974,-1039.073,0.00032973,2]
[313115362,1706764244983,-5000.0,0.00033,3]
[313115363,1706764244992,-550.0,0.00033,3]
[313115364,1706764245001,-288.46573073,0.00033,2]
[313115365,1706764245011,-50000.0,0.0003302,10]
[313115366,1706764245020,-707.0,0.00033024,5]
[313115367,1706764245030,-234.0201,0.00033048,4]
[313115368,1706764245039,-156.02098432,0.0003309,2]
[313115369,1706764245049,-234.0201,0.00033148,4]
[313115370,1706764245058,-584.69,0.00033151,120]
[313115371,1706764245067,-599.04,0.00033212,2]
[313115372,1706764245076,-234.0201,0.00033248,4]
[313115373,1706764245085,-153.06,0.00033268,2]
[313115374,1706764245094,-15118.58548577,0.00033271,5]
[313115375,1706764245103,-598.0,0.000333,2]
[313115376,1706764245112,-1000.0,0.00033333,2]
[313115377,1706764245122,-234.0201,0.00033348,4]
[313115378,1706764245131,-487.7,0.00033352,2]
[313115379,1706764245139,-400.96,0.00033391,2]
[313115380,1706764245148,-2010.82,0.000334,2]
[313115381,1706764245158,-1000.0,0.000334,2]
[313115382,1706764245167,-168.52594761,0.00033421,2]
[313115383,1706764245176,-150.0,0.00033423,2]
[313115384,1706764245185,-1337.94,0.00033424,2]
[313115385,1706764245194,-515.00948955,0.00033424,2]
[313115386,1706764245203,-1000.0,0.00033424,7]
[313115387,1706764245212,-500.0,0.00033424,2]
[313115388,1706764245221,-323.61793014,0.00033424,2]
[313115389,1706764245230,-560.27,0.00033424,2]
[313115390,1706764245239,-500.0,0.00033424,2]
[313115391,1706764245248,-295.31514899,0.00033424,2]
[313115392,1706764245258,-500.0,0.00033424,10]
[313115393,1706764245268,-500.0,0.00033424,2]
[313115395,1706764245277,-541.11,0.00033424,2]
[313115397,1706764245286,-500.0,0.00033424,2]
[313115399,1706764245295,-500.0,0.00033424,2]
[313115401,1706764245305,-620.63486292,0.00033424,2]
[313115403,1706764245314,-366.05240396,0.00033424,2]
[313115405,1706764245324,-350.44610537,0.00033424,2]
[313115408,1706764245333,-506.2252133,0.00033424,2]
[313115410,1706764245342,-1354.85,0.00033424,2]
[313115412,1706764245351,-500.0,0.00033424,2]
[313115414,1706764245360,-172.19884134,0.00033424,2]
[313115416,1706764245370,-707.52,0.00033424,2]
[313115418,1706764245380,-597.19,0.00033424,2]
[313115420,1706764245389,-500.0,0.00033424,2]
[313115422,1706764245398,-615.41130962,0.00033424,2]
[313115424,1706764245408,-580.43,0.00033424,2]
[313115426,1706764245417,-505.63850174,0.00033424,2]
[313115429,1706764245426,-500.0,0.00033424,2]
[313115432,1706764245435,-500.0,0.00033424,2]
[313115435,1706764245444,-532.91079868,0.00033424,2]
[313115437,1706764245453,-500.0,0.00033424,2]
[313115439,1706764245462,-500.0,0.00033424,2]
[313115441,1706764245472,-500.0,0.00033424,2]
[313115443,1706764245481,-386.06526422,0.00033424,2]
[313115444,1706764245490,-500.0,0.00033424,2]
[313115447,1706764245502,-549.82480856,0.00033424,2]
[313115449,1706764245511,-1110.92,0.00033424,2]
[313115451,1706764245521,-500.0,0.00033424,2]
[313115452,1706764245530,-500.0,0.00033424,2]
[313115453,1706764245538,-500.0,0.00033424,2]
[313115454,1706764245548,-500.0,0.00033424,2]
[313115455,1706764245557,-500.0,0.00033424,2]
[313115456,1706764245566,-964.26,0.00033424,2]
[313115457,1706764245575,-500.0,0.00033424,2]
[313115458,1706764245584,-500.0,0.00033424,2]
[313115459,1706764245593,-1739.73,0.00033424,2]
[313115460,1706764245602,-500.0,0.00033424,2]
[313115461,1706764245610,-500.0,0.00033424,2]
[313115462,1706764245619,-500.0,0.00033424,2]
[313115463,1706764245628,-500.0,0.00033424,2]
[313115464,1706764245637,-500.0,0.00033424,2]
[313115465,1706764245646,-544.97,0.00033424,2]
[313115466,1706764245656,-500.0,0.00033424,2]
[313115467,1706764245665,-631.42102179,0.00033424,2]
[313115468,1706764245674,-500.0,0.00033424,2]
[313115469,1706764245683,-903.61,0.00033424,2]
[313115470,1706764245692,-966.72,0.00033424,2]
[313115471,1706764245700,-1180.63,0.00033424,7]
[313115472,1706764245709,-500.0,0.00033424,2]
[313115473,1706764245718,-500.0,0.00033424,2]
[313115474,1706764245727,-1035.52,0.00033424,2]
[313115475,1706764245736,-719.16,0.00033424,2]
[313115476,1706764245746,-500.0,0.00033424,2]
[313115477,1706764245759,-500.0,0.00033424,2]
[313115478,1706764245769,-500.0,0.00033424,2]
[313115479,1706764245778,-500.0,0.00033424,2]
[313115480,1706764245788,-500.0,0.00033424,2]
[313115481,1706764245798,-500.0,0.00033424,2]
[313115482,1706764245807,-500.0,0.00033424,2]
[313115483,1706764245816,-500.0,0.00033424,2]
[313115484,1706764245826,-1198.59,0.00033424,2]
[313115485,1706764245837,-500.0,0.00033424,2]
[313115486,1706764245846,-500.0,0.00033424,2]
[313115487,1706764245855,-500.0,0.00033424,2]
[313115488,1706764245865,-500.0,0.00033424,2]
[313115489,1706764245875,-500.0,0.00033424,2]
[313115490,1706764245884,-500.0,0.00033424,2]
[313115491,1706764245894,-500.0,0.00033424,2]
[313115492,1706764245903,-10000.0,0.00033424,3]
[313115493,1706764245913,-500.0,0.00033424,2]
[313115494,1706764245923,-550.27373159,0.00033424,2]
[313115495,1706764245932,-500.0,0.00033424,2]
[313115496,1706764245942,-500.0,0.00033424,2]
[313115497,1706764245951,-500.0,0.00033424,2]
[313115498,1706764245960,-602.01292389,0.00033424,20]
[313115499,1706764245970,-500.0,0.00033424,2]
[313115500,1706764245980,-500.0,0.00033424,2]
[313115501,1706764245989,-500.0,0.00033424,2]
[313115502,1706764245999,-500.0,0.00033424,2]
[313115503,1706764246008,-500.0,0.00033424,2]
[313115504,1706764246018,-539.12847806,0.00033424,2]
[313115505,1706764246028,-500.0,0.00033424,2]
[313115506,1706764246038,-500.0,0.00033424,2]
[313115507,1706764246048,-500.0,0.00033424,2]
[313115508,1706764246057,-500.0,0.00033424,2]
[313115509,1706764246068,-844.48,0.00033424,2]
[313115510,1706764246078,-331.0927876,0.00033424,2]
[313115511,1706764246089,-500.0,0.00033424,2]
[313115512,1706764246098,-500.0,0.00033424,2]
[313115513,1706764246108,-500.0,0.00033424,2]
[313115514,1706764246117,-500.0,0.00033424,2]
[313115515,1706764246126,-500.0,0.00033424,2]
[313115516,1706764246136,-500.0,0.00033424,2]
[313115517,1706764246145,-500.0,0.00033424,2]
[313115518,1706764246155,-500.0,0.00033424,2]
[313115519,1706764246164,-500.0,0.00033424,2]
[313115520,1706764246174,-500.0,0.00033424,2]
[313115521,1706764246183,-500.0,0.00033424,2]
[313115522,1706764246193,-500.0,0.00033424,2]
[313115523,1706764246203,-500.0,0.00033424,2]
[313115524,1706764246212,-500.0,0.00033424,2]
[313115525,1706764246223,-500.0,0.00033424,2]
[313115526,1706764246233,-500.0,0.00033424,2]
[313115527,1706764246242,-500.0,0.00033424,2]
[313115528,1706764246252,-500.0,0.00033424,2]
[313115529,1706764246262,-646.8,0.00033424,2]
[313115530,1706764246272,-694.26,0.00033424,2]
[313115531,1706764246282,-1325.26,0.00033424,2]
[313115532,1706764246292,-500.0,0.00033424,2]
[313115533,1706764246302,-500.0,0.00033424,2]
[313115534,1706764246311,-211.03797508,0.00033424,2]
[313115535,1706764246321,-500.0,0.00033424,2]
[313115536,1706764246330,-500.0,0.00033424,2]
[313115537,1706764246339,-500.0,0.00033424,2]
[313115538,1706764246349,-500.0,0.00033424,2]
[313115539,1706764246358,-812.21,0.00033424,5]
[313115540,1706764246368,-726.2,0.00033424,2]
[313115541,1706764246378,-1154.17,0.00033424,2]
[313115542,1706764246387,-558.88,0.00033424,2]
[313115543,1706764246397,-500.0,0.00033424,2]
[313115544,1706764246408,-457.78078341,0.00033424,2]
[313115545,1706764246418,-500.0,0.00033424,2]
[313115546,1706764246428,-500.0,0.00033424,2]
[313115547,1706764246437,-744.15,0.00033424,2]
[313115548,1706764246447,-2998.66,0.00033424,2]
[313115549,1706764246458,-520.37220388,0.00033424,2]
[313115550,1706764246468,-500.0,0.00033424,2]
[313115551,1706764246477,-1090.8,0.00033424,2]
[313115552,1706764246487,-500.0,0.00033424,2]
[313115553,1706764246498,-2334.32,0.00033424,2]
[313115554,1706764246507,-500.0,0.00033424,2]
[313115555,1706764246518,-1125.27,0.00033424,2]
[313115556,1706764246527,-500.0,0.00033424,2]
[313115557,1706764246537,-2572.03,0.00033424,2]
[313115558,1706764246547,-1000.0,0.00033424,21]
[313115559,1706764246557,-646.65,0.00033424,2]
[313115560,1706764246566,-292.17829781,0.00033424,2]
[313115561,1706764246576,-500.0,0.00033424,2]
[313115562,1706764246585,-500.0,0.00033424,2]
[313115563,1706764246594,-500.0,0.00033424,2]
[313115564,1706764246604,-976.09,0.00033424,2]
[313115565,1706764246613,-500.0,0.00033424,2]
[313115566,1706764246622,-500.0,0.00033424,2]
[313115567,1706764246632,-500.0,0.00033424,2]
[313115568,1706764246641,-500.0,0.00033424,2]
[313115569,1706764246651,-189.8198519,0.00033424,2]
[313115570,1706764246661,-882.36,0.00033424,2]
[313115571,1706764246672,-1222.72,0.00033424,2]
[313115572,1706764246681,-500.0,0.00033424,2]
[313115573,1706764246690,-500.0,0.00033424,2]
[313115574,1706764246700,-500.0,0.00033424,2]
[313115575,1706764246710,-615.94,0.00033424,2]
[313115576,1706764246720,-4756.15,0.00033424,2]
[313115577,1706764246730,-566.49,0.00033424,2]
[313115578,1706764246739,-500.0,0.00033424,2]
[313115579,1706764246752,-613.94,0.00033424,2]
[313115580,1706764246764,-500.0,0.00033424,2]
[313115581,1706764246773,-500.0,0.00033424,2]
[313115582,1706764246783,-633.30667643,0.00033424,2]
[313115583,1706764246793,-500.0,0.00033424,2]
[313115584,1706764246803,-500.0,0.00033424,2]
[313115585,1706764246812,-604.01596964,0.00033424,2]
[313115586,1706764246821,-500.0,0.00033424,2]
[313115587,1706764246831,-500.0,0.00033424,2]
[313115588,1706764246840,-597.05954691,0.00033424,2]
[313115589,1706764246849,-500.0,0.00033424,2]
[313115590,1706764246858,-572.55,0.00033424,2]
[313115591,1706764246869,-500.0,0.00033424,2]
[313115592,1706764246878,-1219.09,0.00033424,2]
[313115593,1706764246888,-500.0,0.00033424,2]
[313115594,1706764246898,-500.0,0.00033424,2]
[313115595,1706764246908,-500.0,0.00033424,2]
[313115596,1706764246917,-500.0,0.00033424,2]
[313115597,1706764246928,-500.0,0.00033424,2]
[313115598,1706764246938,-500.0,0.00033424,2]
[313115599,1706764246947,-500.0,0.00033424,2]
[313115600,1706764246957,-734.19,0.00033424,2]
[313115601,1706764246967,-1095.15,0.00033424,2]
[313115602,1706764246976,-500.0,0.00033424,2]
[313115603,1706764246986,-787.25,0.00033424,2]
[313115604,1706764246996,-545.45,0.00033424,2]
[313115605,1706764247006,-261.07114524,0.00033424,2]
[313115606,1706764247017,-557.22,0.00033424,2]
[313115607,1706764247027,-500.0,0.00033424,2]
[313115608,1706764247036,-500.0,0.00033424,2]
[313115609,1706764247046,-510.91,0.00033424,2]
[313115610,1706764247055,-500.0,0.00033424,2]
[313115611,1706764247065,-500.0,0.00033424,2]
[313115612,1706764247075,-500.0,0.00033424,2]
[313115613,1706764247084,-502.7,0.00033424,2]
[313115614,1706764247094,-1049.66,0.00033424,2]
[313115615,1706764247103,-500.0,0.00033424,2]
[313115616,1706764247113,-525.59216702,0.00033424,2]
[313115617,1706764247122,-535.68,0.00033424,2]
[313115618,1706764247131,-630.03,0.00033424,2]
[313115619,1706764247141,-500.0,0.00033424,2]
[313115620,1706764247151,-515.88,0.00033424,2]
[313115621,1706764247161,-950.25,0.00033424,2]
[313115622,1706764247171,-525.51,0.00033424,2]
[313115623,1706764247180,-2676.27,0.00033424,2]
[313115624,1706764247190,-500.0,0.00033424,2]
[313115625,1706764247199,-500.0,0.00033424,2]
[313115626,1706764247209,-500.0,0.00033424,2]
[313115627,1706764247218,-500.0,0.00033424,2]
[313115628,1706764247228,-500.0,0.00033424,2]
[313115629,1706764247237,-500.0,0.00033424,2]
[313115630,1706764247247,-753.34,0.00033424,2]
[313115631,1706764247257,-500.0,0.00033424,2]
[313115632,1706764247267,-500.0,0.00033424,2]
[313115633,1706764247276,-749.99,0.00033424,2]
[313115634,1706764247287,-500.0,0.00033424,2]
[313115635,1706764247296,-500.0,0.00033424,2]
[313115636,1706764247306,-1191.55,0.00033424,2]
[313115637,1706764247316,-584.12,0.00033424,2]
[313115638,1706764247325,-500.0,0.00033424,2]
[313115639,1706764247335,-500.0,0.00033424,2]
[313115640,1706764247345,-1199.33,0.00033424,2]
[313115641,1706764247354,-500.0,0.00033424,2]
[313115642,1706764247364,-519.4208246,0.00033424,2]
[313115643,1706764247374,-1000.0,0.00033424,7]
[313115644,1706764247384,-543.27,0.00033424,2]
[313115645,1706764247394,-2584.93,0.00033424,2]
[313115646,1706764247404,-589.94,0.00033424,2]
[313115647,1706764247413,-539.83,0.00033424,2]
[313115648,1706764247423,-596.15,0.00033424,2]
[313115649,1706764247433,-585.67,0.00033424,2]
[313115650,1706764247443,-500.0,0.00033424,2]
[313115651,1706764247453,-1063.1,0.00033424,2]
[313115652,1706764247463,-1000.0,0.00033424,7]
[313115653,1706764247472,-625.67,0.00033424,2]
[313115654,1706764247482,-500.0,0.00033424,2]
[313115655,1706764247492,-1467.48,0.00033424,2]
[313115656,1706764247502,-1552.63,0.00033424,2]
[313115657,1706764247512,-500.0,0.00033424,2]
[313115658,1706764247522,-993.17,0.00033424,2]
[313115659,1706764247531,-500.0,0.00033424,2]
[313115660,1706764247541,-500.0,0.00033424,2]
[313115661,1706764247550,-500.0,0.00033424,2]
[313115662,1706764247560,-766.95,0.00033424,2]
[313115663,1706764247569,-1917.33,0.00033424,5]
[313115664,1706764247578,-500.0,0.00033424,2]
[313115665,1706764247588,-997.25,0.00033424,2]
[313115666,1706764247597,-500.0,0.00033424,2]
[313115667,1706764247607,-500.0,0.00033424,2]
[313115668,1706764247616,-500.0,0.00033424,2]
[313115669,1706764247626,-585.49668427,0.00033424,2]
[313115670,1706764247635,-500.0,0.00033424,2]
[313115671,1706764247645,-2175.53,0.00033424,2]
[313115672,1706764247654,-639.8,0.00033424,2]
[313115673,1706764247663,-651.88,0.00033424,2]
[313115674,1706764247672,-500.0,0.00033424,2]
[313115675,1706764247682,-17050.54,0.00033424,2]
[313115676,1706764247691,-500.0,0.00033424,2]
[313115677,1706764247701,-650.55,0.00033424,2]
[313115678,1706764247711,-500.0,0.00033424,2]
[313115679,1706764247720,-1374.46,0.00033424,2]
[313115680,1706764247730,-500.0,0.00033424,2]
[313115681,1706764247739,-1323.97,0.00033424,2]
[313115682,1706764247750,-500.0,0.00033424,2]
[313115683,1706764247761,-500.0,0.00033424,2]
[313115684,1706764247770,-555.19,0.00033424,2]
[313115685,1706764247781,-500.0,0.00033424,2]
[313115686,1706764247790,-500.0,0.00033424,2]
[313115687,1706764247800,-561.73,0.00033424,2]
[313115688,1706764247810,-1221.6,0.00033424,2]
[313115689,1706764247819,-1352.88,0.00033424,2]
[313115690,1706764247829,-762.08,0.00033424,2]
[313115691,1706764247839,-500.0,0.00033424,2]
[313115692,1706764247849,-707.86,0.00033424,2]
[313115693,1706764247858,-585.84,0.00033424,2]
[313115694,1706764247867,-2250.52,0.00033424,2]
[313115695,1706764247877,-500.0,0.00033424,2]
[313115696,1706764247886,-716.1,0.00033424,2]
[313115697,1706764247896,-500.0,0.00033424,2]
[313115698,1706764247905,-500.0,0.00033424,2]
[313115699,1706764247914,-500.0,0.00033424,2]
[313115700,1706764247923,-500.0,0.00033424,2]
[313115701,1706764247933,-512.04792328,0.00033424,2]
[313115702,1706764247942,-500.0,0.00033424,2]
[313115703,1706764247951,-811.63,0.00033424,2]
[313115704,1706764247960,-500.0,0.00033424,2]
[313115705,1706764247970,-500.0,0.00033424,2]
[313115706,1706764247979,-529.8942393,0.00033424,2]
[313115707,1706764247989,-500.0,0.00033424,2]
[313115708,1706764247998,-669.33,0.00033424,2]
[313115709,1706764248007,-234.0201,0.00033448,4]
[313115710,1706764248018,-500.0,0.00033461,2]
[313115711,1706764248027,-200.0,0.00033461,2]
[313115712,1706764248037,-234.0201,0.00033548,4]
[313115713,1706764248046,-429.5187424,0.00033595,5]
[313115714,1706764248056,-152.41868763,0.00033632,2]
[313115715,1706764248066,-234.0201,0.00033648,4]
[313115716,1706764248075,-3000.0,0.0003365,2]
[313115717,1706764248085,-234.0201,0.00033748,4]
[313115718,1706764248094,-234.0201,0.00033848,4]
[313115719,1706764248103,-11097.4804823,0.00033903,2]
[313115720,1706764248113,-198.19783749,0.00033904,2]
[313115721,1706764248122,-121566.6910535,0.00033926,2]
[313115722,1706764248132,-151.0201,0.00033948,4]
[313115723,1706764248141,-234.0201,0.00033948,4]
[313115724,1706764248303,-3191.0524229,0.00033949,2]
[313115725,1706764248313,-500.0,0.00033969,2]
[313115726,1706764248323,-500.0,0.00033969,2]
[313115727,1706764248332,-500.0,0.00033969,2]
[313115728,1706764248341,-529.24,0.00033969,2]
[313115729,1706764248351,-500.0,0.00033969,2]
[313115730,1706764248361,-1337.94,0.00033972,2]
[313115731,1706764248370,-1000.0,0.00033972,7]
[313115732,1706764248379,-500.0,0.00033972,2]
[313115733,1706764248388,-560.27,0.00033972,2]
[313115734,1706764248398,-500.0,0.00033972,2]
[313115735,1706764248407,-500.0,0.00033972,10]
[313115736,1706764248417,-511.25195866,0.00033972,2]
[313115737,1706764248426,-541.11,0.00033972,2]
[313115738,1706764248435,-500.0,0.00033972,2]
[313115739,1706764248445,-500.0,0.00033972,2]
[313115740,1706764248454,-1354.85,0.00033972,2]
[313115741,1706764248463,-500.0,0.00033972,2]
[313115742,1706764248472,-707.52,0.00033972,2]
[313115743,1706764248482,-597.19,0.00033972,2]
[313115744,1706764248491,-500.0,0.00033972,2]
[313115745,1706764248501,-580.43,0.00033972,2]
[313115746,1706764248510,-515.00358927,0.00033972,2]
[313115747,1706764248520,-500.0,0.00033972,2]
[313115748,1706764248530,-500.0,0.00033972,2]
[313115749,1706764248538,-500.0,0.00033972,2]
[313115750,1706764248548,-500.0,0.00033972,2]
[313115751,1706764248557,-500.0,0.00033972,2]
[313115752,1706764248566,-1110.92,0.00033972,2]
[313115753,1706764248575,-500.0,0.00033972,2]
[313115754,1706764248584,-500.0,0.00033972,2]
[313115755,1706764248594,-500.0,0.00033972,2]
[313115756,1706764248603,-500.0,0.00033972,2]
[313115757,1706764248613,-500.0,0.00033972,2]
[313115758,1706764248622,-964.26,0.00033972,2]
[313115759,1706764248631,-500.0,0.00033972,2]
[313115760,1706764248640,-500.0,0.00033972,2]
[313115761,1706764248649,-1739.73,0.00033972,2]
[313115762,1706764248658,-500.0,0.00033972,2]